Cogmind - Beta 16.1 @@@ ROGUE MODE // 2026.04.08 @ 02:19:53 Player: KURIIRI Result: Destroyed by YP-1NV(R) with Subdweller Laser Performance ------------- Evolutions (0) 0 Regions Visited (2) 400 Robots Destroyed (40) 200 Value Destroyed (1112) 1112 Prototype IDs (14) 280 Alien Tech Used (0) 0 Bonus (0) 0 TOTAL SCORE: 1992 Bonus ------- None Cogmind --------- Core Integrity 0/250 Matter 276/300 Energy 258/280 System Corruption 0% Temperature Cool (31) Movement Treading (160) Location -10/Subcaves Parts ------- > --- POWER (1) -------- Heavy Ion Engine > --- PROPULSION (2) --- Improved Treads Spiked Treads > --- UTILITY (2) ------ Scrap Shield > --- WEAPON (2) ------- Subdweller Laser Subdweller Laser > --- INVENTORY (5) ---- Improved Treads Large Storage Unit High-capacity Storage Unit Subdweller Beam Cannon Peak State ------------ > --- POWER ------------ Heavy Ion Engine > --- PROPULSION ------- Improved Treads Improved Treads > --- UTILITY ---------- Improved Heat Sink High-capacity Storage Unit > --- WEAPON ----------- Particle Gun Particle Gun > --- INVENTORY -------- Ion Engine Heavy Ion Engine Improved Treads Improved Treads Wheel Large Matter Pod Large Matter Pod High-capacity Matter Pod Improved Terrain Scanner Light Armor Plating Hacking Suite Hacking Suite Small Laser Particle Gun Particle Gun Grenade Launcher Grenade Launcher Hammer [Rating: 18] Favorites ----------- Power Heavy Ion Engine Engine Heavy Ion Engine Propulsion Improved Treads Treads Improved Treads Leg Aluminum Leg Wheel Wheel Utility Large Storage Unit Device Improved Heat Sink Storage Large Storage Unit Protection Scrap Shield Weapon Subdweller Machine Gun Energy Gun Particle Gun Energy Cannon Subdweller Beam Cannon Ballistic Gun Subdweller Machine Gun Impact Weapon Hammer Build | -11 -10 -10 ------- Run | Yrd Mat Sub Slots Evolved . | . . . Power . | . . . Propulsion . | . . . Utility . | . . . Weapon . | . . . Parts Attached 25 | 3 15 7 Power 2 | . 2 . Engine 2 | . 2 . Core . | . . . Reactor . | . . . Propulsion 7 | 2 3 2 Treads 6 | 2 2 2 Leg . | . . . Wheel 1 | . 1 . Hover . | . . . Flight . | . . . Utility 6 | 1 4 1 Device 2 | 1 1 . Storage 3 | . 3 . Processor . | . . . Hackware . | . . . Protection 1 | . . 1 Artifact . | . . . Weapon 10 | . 6 4 Energy Gun 6 | . 4 2 Energy Cannon 1 | . . 1 Ballistic Gun 2 | . 1 1 Ballistic Cannon . | . . . Launcher . | . . . Special Weapon . | . . . Impact Weapon 1 | . 1 . Slashing Weapon . | . . . Piercing Weapon . | . . . Special Melee Weapon . | . . . Unidentified Prototypes 1 | . 1 . Parts Lost 2 | . 1 1 Power . | . . . Propulsion 1 | . . 1 Utility . | . . . Weapon 1 | . 1 . Highest Loss Streak 1 | . 1 1 To Critical Strikes . | . . . Average Backups 13 | 5 12 13 Power 1 | 1 1 . Propulsion 2 | 3 2 2 Utility 5 | . 4 5 Weapon 4 | 1 3 5 Tool/Special . | . . . Unused Backups 26 | . 13 13 Power 4 | . 3 1 Propulsion 2 | . . 2 Utility 10 | . 5 5 Weapon 10 | . 5 5 Tool/Special . | . . . Average Slot Usage (%) 98 | . 99 98 Engine 13 | . 13 14 Treads 27 | . 27 27 Device 13 | . 13 12 Storage 13 | . 14 12 Energy Gun 8 | . 16 5 Energy Cannon 7 | . . 10 Ballistic Gun 11 | . 9 11 Peak Build Rating 18 | 9 18 18 Average Rating 16 | 8 13 17 On Entrance 10 | 6 9 17 Avg Prop Armor Cover (%) 13 | . 13 . Naked Turns . | . . . Heaviest Build 55 | 13 55 41 Greatest Support 46 | 40 46 46 Greatest Overweight (x) 4 | . 4 . Average Overweight (x) . | . . . Largest Inventory Capacity 20 | 8 20 15 Average Capacity 14 | 8 14 14 Most Carried 20 | 6 20 15 Average Carried 13 | 5 12 13 Final Capacity 15 | 8 15 5 Final Carried 15 | 4 15 4 Class Distribution -------------------- 95% | Mutant 4% | Subdweller-Mutant Dominant Class ---------------- Mutant | -10/Materials Mutant | -10/Subcaves Resources | -11 -10 -10 ----------- Run | Yrd Mat Sub Matter Collected 1662 | 254 619 789 Remotely . | . . . Salvage Created 1327 | 104 588 635 Parts 85 | 4 37 44 Haulers Intercepted . | . . . Recyclers Shooed . | . . . Parts Field Recycled . | . . . Retrieved Matter . | . . . Parts Self-Destructed 9 | . . 9 Prevented . | . . . Parts Restored . | . . . Kills | -11 -10 -10 ------- Run | Yrd Mat Sub Combat Hostiles Destroyed 34 | . 17 17 Guns 19 | . 15 4 Cannons 12 | . . 12 Classes Destroyed 9 | 2 4 3 Tunneler 1 | 1 . . Recycler 1 | 1 . . Operator 2 | . 2 . Watcher 2 | . 2 . Swarmer 10 | . 6 4 Grunt 11 | . 11 . Sentry 1 | . . 1 Artisan 1 | . . 1 Subdweller 12 | . . 12 Best Kill Streak 4 | 1 3 4 Combat Bots Only 4 | . 3 4 Max Kills in Single Turn 2 | 1 1 2 Gunslinging . | . . . Exploded . | . . . Melee . | . . . Uniques/NPCs Destroyed . | . . . Combat | -11 -10 -10 -------- Run | Yrd Mat Sub Hostile Shots Fired 124 | . 71 53 Missed 35 | . 18 17 Hits 89 | . 53 36 Projectile 89 | . 53 36 Critical Strikes 2 | . . 2 Damage Taken 1396 | . 590 806 Core 262 | . 90 172 Absorbed by Shields . | . . . Regen/Repaired (Parts) 16 | . 16 . Core Remaining (%) 100 | 100 . . Volleys Fired 165 | 12 45 108 Largest 2 | 2 2 2 Hottest 130 | 40 130 130 Shots Fired 240 | 24 88 128 Gun 189 | 24 88 77 Cannon 51 | . . 51 Launcher . | . . . Special . | . . . Kinetic 104 | 24 30 50 Thermal 136 | . 58 78 Explosive . | . . . Electromagnetic . | . . . Robot Hit Streak 26 | 8 13 26 Robot Miss Streak 3 | 2 3 3 Penetration Max . | . . . Secondary Targets . | . . . Shots Hit Robots 142 | 17 66 59 Core Hits 55 | 4 29 22 Critical Kills 1 | . . 1 Critical Parts Destroyed 3 | . 2 1 Critical Strikes 6 | . 4 2 Burn 2 | . 2 . Meltdown 1 | . . 1 Destroy 1 | . . 1 Smash 2 | . 2 . Melee Attacks 14 | . 14 . Impact 14 | . 14 . Slashing . | . . . Piercing . | . . . Sneak Attacks 1 | . 1 . Combat Hostiles 1 | . 1 . Follow-up Attacks . | . . . Damage Inflicted 2512 | 131 1050 1331 Guns 1488 | 131 828 529 Cannons 802 | . . 802 Explosions . | . . . Melee 206 | . 206 . Ramming 16 | . 16 . Kinetic 558 | 131 198 229 Thermal 1732 | . 630 1102 Explosive . | . . . Electromagnetic . | . . . Impact 206 | . 206 . Slashing . | . . . Piercing . | . . . Highest Corruption . | . . . Average Corruption . | . . . Corruption Purged . | . . . Corruption Blocked . | . . . Overload Shots . | . . . Overflow Damage 83 | . 83 . Projectiles . | . . . Explosions . | . . . Melee 83 | . 83 . Knockbacks 1 | . 1 . Impact 1 | . 1 . Kinetic . | . . . Secondary . | . . . Self-Inflicted Damage . | . . . Shots . | . . . Rammed 4 | . 4 . Targets Rammed 4 | . 4 . Kicked . | . . . Crushed . | . . . Highest Temperature 381 | . 381 287 Average Temperature 76 | . 84 47 Received Heat Transfer 684 | . 267 417 Effects 1 | . . 1 Energy Bleed 1 | . . 1 Siege Activations . | . . . Martial Activations . | . . . Shielding Activations . | . . . Robots Disrupted . | . . . Combat Hostiles . | . . . Robots Corrupted 2 | . 2 . Combat Hostiles 2 | . 2 . Parts Fried 2 | . 2 . Impact Corruptions 3 | . 3 . Robots Melted 1 | . . 1 Combat Hostiles 1 | . . 1 Parts Melted 5 | . 4 1 Heat Transferred 3273 | . 1594 1679 Parts Sabotaged . | . . . Parts Stolen . | . . . Parts Stripped . | . . . Power Chain Reactions . | . . . Alert | -11 -10 -10 ------- Run | Yrd Mat Sub Maximum Alert Level . | . . . Low Security (%) 100 | 100 100 . Level 1 . | . . . Level 2 . | . . . Level 3 . | . . . Level 4 . | . . . Level 5 . | . . . High Security . | . . . Max Security . | . . . Peak Influence 166 | 5 166 . Initial . | . . . Average 57 | 2 59 . Influence Increases 759 | 10 604 145 Destroy 0b10 Robot/C 440 | . 340 100 Destroy 0b10 Robot/NC 30 | 10 20 . Destroy Leader 94 | . 94 . Successful Hack 42 | . 42 . Select Force Hacks 60 | . 60 . Disable Machine 15 | . 15 . Destroy Structure 3 | . 3 . Partial Spotted 15 | . 15 . Lose Combat Pursuer 60 | . 15 45 Influence Decreases 759 | 10 441 308 Entered New Map 79 | . . 79 Time Decay 670 | 10 431 229 Lost Part 10 | . 10 . Squads Dispatched 6 | . 6 . Investigation 5 | . 5 . Extermination . | . . . Reinforcement 1 | . 1 . Assault . | . . . Garrison . | . . . Intercept . | . . . Searches Triggered . | . . . Construction Impeded . | . . . Haulers Reinforced . | . . . Active Scanning Responses . | . . . Cargo Convoy Interrupts . | . . . Stealth | -11 -10 -10 --------- Run | Yrd Mat Sub Distress Signals 1 | . 1 . Communications Jammed . | . . . Distress Signals . | . . . Times Spotted 45 | . 25 20 Peak Tracking Total 6 | . 3 6 Tactical Retreats 4 | . 1 3 Traps | -11 -10 -10 ------- Run | Yrd Mat Sub Traps Triggered 6 | . 3 3 Indirectly . | . . . Trap Hack Attempts . | . . . Triggered . | . . . Disarmed . | . . . Reprogrammed . | . . . Reused . | . . . Traps Extracted . | . . . Installed . | . . . Triggered . | . . . Machines | -11 -10 -10 ---------- Run | Yrd Mat Sub Machines Disabled 1 | . 1 . Max in Single Turn 1 | . 1 . Machines Repaired . | . . . Machines Dismantled . | . . . Machines Sabotaged . | . . . Overloaded Fab Kills . | . . . Hacking | -11 -10 -10 --------- Run | Yrd Mat Sub Machines Accessed 12 | . 10 2 Terminals 7 | . 7 . Fabricators . | . . . Repair Stations 1 | . 1 . Recycling Units 2 | . 2 . Scanalyzers . | . . . Garrison Access . | . . . Total Hacks 48 | . 36 12 Successful 33 | . 21 12 Failed 15 | . 15 . Catastrophic 1 | . 1 . Database Lockouts . | . . . Manual 31 | . 31 . Terminals 31 | . 31 . Fabricators . | . . . Repair Stations 2 | . 2 . Recycling Units 3 | . 3 . Scanalyzers . | . . . Garrison Access . | . . . Terminal Hacks 17 | . 5 12 Record 11 | . . 11 Robot Analysis 5 | . 5 . Proto ID Catalog 1 | . . 1 Fabricator Hacks . | . . . Repair Station Hacks 2 | . 2 . Scan Component 1 | . 1 . Repair 1 | . 1 . Recycling Unit Hacks 1 | . 1 . Retrieve Components 1 | . 1 . Scanalyzer . | . . . Garrison Access Hacks . | . . . Unauthorized Hacks 13 | . 13 . Terminals 11 | . 11 . Track 1 | . 1 . Botnet 2 | . 2 . Disrupt 1 | . 1 . Operators 1 | . 1 . Skim 6 | . 6 . Fabricators . | . . . Repair Stations . | . . . Recycling Units 2 | . 2 . Tunnel 2 | . 2 . Scanalyzers . | . . . Garrison Access . | . . . Data Cores Recovered 1 | . 1 . Used . | . . . Hacking Detections 8 | . 8 . Full Trace Events . | . . . Feedback Events . | . . . Feedback Blocked . | . . . Robot Schematics Acquired . | . . . Robots Built . | . . . Authchips . | . . . Time . | . . . Total Robot Build Rating . | . . . Part Schematics Acquired . | . . . Parts Built . | . . . Authchips . | . . . Time . | . . . Total Part Build Rating . | . . . Part Studies Acquired . | . . . Parts Repaired 1 | . 1 . Time 38 | . 38 . Parts Recycled . | . . . Recycled Matter . | . . . Retrieved Matter . | . . . Retrieved Components 10 | . 10 . Parts Scanalyzed . | . . . Part Schematics Acquired . | . . . Parts Damaged . | . . . Bothacking | -11 -10 -10 ------------ Run | Yrd Mat Sub Used RIF Installer . | . . . Robots Hacked . | . . . Non-combat . | . . . Combat . | . . . Robot Hacks Applied . | . . . Relay Couplers Released . | . . . Fabnet Peak Effective % . | . . . Robots Rewired . | . . . Allies Hacked . | . . . Hacks Repelled . | . . . Allies | -11 -10 -10 -------- Run | Yrd Mat Sub Total Allies . | . . . Largest Group . | . . . Highest-Rated Group . | . . . Highest-Rated Ally . | . . . Total Orders . | . . . Ally Attacks . | . . . Total Damage . | . . . Kills . | . . . Allies Corrupted . | . . . Allies Melted . | . . . Intel | -11 -10 -10 ------- Run | Yrd Mat Sub Active Infowar (turns) 1841 | 46 845 950 Terrain 1841 | 46 845 950 Robot Analysis Total 5 | . 5 . Derelict Logs Recovered 1 | . . 1 Drone Launches . | . . . Drone Recoveries . | . . . Exploration | -11 -10 -10 ------------- Run | Yrd Mat Sub Turns Passed 6285 | 63 1634 4588 Spaces Moved 2232 | 19 696 1517 Core . | . . . Treads 2204 | 8 679 1517 Legs 11 | 11 . . Wheels 17 | . 17 . Hover . | . . . Flight . | . . . Fastest Speed 120 | 120 140 160 Average Speed 167 | 136 185 160 Slowest Speed 320 | 160 320 160 Overloaded Moves . | . . . Propulsion Burnouts . | . . . Robots Hopped . | . . . Potential Cave-ins 5 | . . 5 Cave-ins Triggered . | . . . Exploration Rate (%) 59 | 2 96 81 Regions Visited 2 Branch Regions 1 Pre-discovered Areas 3 | . 3 . Known Exits Taken . | . . . Unknown Exits Taken 2 | 1 1 . Scrap Searched 7 | . . 7 Spaces Dug 17 | . 2 15 Terrain Destroyed 31 | . 2 29 Melee 2 | . 2 . Projectile 29 | . . 29 AOE . | . . . Terrain Rammed . | . . . Walls Destroyed . | . . . Machines Disabled . | . . . Actions | -11 -10 -10 --------- Run | Yrd Mat Sub Total 4512 | 36 932 3544 Wait 2004 | 1 117 1886 Move 2230 | 18 695 1517 Hop . | . . . Pick Up 29 | . 21 8 Fast Attach 11 | 1 7 3 Attach 1 | . . 1 Detach 1 | . 1 . Swap 21 | 2 10 9 Drop 32 | 2 18 12 Fire 165 | 12 45 108 Melee 14 | . 14 . Ram . | . . . Kick . | . . . Crush 4 | . 4 . Escape Stasis . | . . . Rewire . | . . . Trap . | . . . Miscellaneous . | . . . Route ------- -11/Scrapyard -10/Materials (discovered 6 exits: [*Mat x3] / *Min x2 / *Sub) -10/Subcaves (discovered 2 exits: [*Mat x2]) History --------- Turn | Location | Event 14 | -11/Scrapyard | Discovered new exit (range 1) 64 | -11/Scrapyard | Entered Materials 282 | -10/Materials | Discovered new exit (range 6) 301 | -10/Materials | Build established: Mutant 564 | -10/Materials | Discovered new exit (range 11) 760 | -10/Materials | Discovered new exit (range 8) 809 | -10/Materials | Discovered new exit (range 13) 1244 | -10/Materials | Identified exit to Mines 1318 | -10/Materials | Learned location of Storage (-9) 1318 | -10/Materials | Discovered new exit (range 13) 1384 | -10/Materials | Learned 4 Recycling zone layouts 1482 | -10/Materials | Repaired Imp. Heat Sink 1488 | -10/Materials | Learned 4 Subcaves zone layouts 1505 | -10/Materials | Discovered exit to Mines (range 5) 1544 | -10/Materials | Loaded intel: 3 trap records 1610 | -10/Materials | Learned Storage emergency access door positions 1698 | -10/Materials | Entered Subcaves 1699 | -10/Subcaves | Approached by a straggling Scientist 1703 | -10/Subcaves | Learned 2 Materials zone layouts 2412 | -10/Subcaves | Core integrity fell below 50% 3178 | -10/Subcaves | Visited Clippyterm 3183 | -10/Subcaves | Learned Research security intel 3200 | -10/Subcaves | Discovered new exit (range 8) 3341 | -10/Subcaves | Disturbed a concealed Subdweller 4609 | -10/Subcaves | Ambushed by Subdweller buried in earth 5369 | -10/Subcaves | Core integrity fell below 20% 5579 | -10/Subcaves | Shifting Twisted Machinery released Battle Cannon 5592 | -10/Subcaves | Shifting Twisted Machinery released Battle Rifle 5978 | -10/Subcaves | Visited 4L-MR0's lab 6128 | -10/Subcaves | Discovered new exit (range 15) 6260 | -10/Subcaves | Build established: Subdweller-Mutant 6286 | -10/Subcaves | Destroyed by YP-1NV(R) with Subdweller Laser Last Messages --------------- something tells me that's where things went wrong. Still I'm glad they didn't listen, that way I'm not culpable for whatever they would've done with it. If we're lucky even some of the others got blasted, too. >>Record "Hoverbase" So they were already pretty big, but switching to this brought them to a completely new level. It took two entire artifacts to create that ginormous thing, and I hope it makes them a fat target for whoever might want to teach them a lesson in manners. 06043_ Subatomizers dissect the Sub. Machine Gun. 06128_ EXIT=FOUND 06258_ Sub. Machine Gun shoots sparks and powers down. 06262_ Dropped Broken Sub. Machine Gun. 06275_ Sub. Beam Cannon shoots sparks and powers down. Map ----- +----------------------------------------------------+ | ???""####" ?# ### #??"""??# | | ??##/ ##" ###" ##?" "??? | | ??#" #?# #"" ##????????? | | ??#"" #?# ## #?????????? | | ??#"X #?# ### ##?###????? | | ??#""!!#?# #" #?## ### #????? | | ??#"!*&#### ## #### !%! #????? | | ??#"*[%##" "# [! ###### | | ??# !#+## "## ![[ # # ## | | ??#""#%"# [ "## ] ! ### | | ??####&= "### !=!/ &&#?## | | ?????#"""" ### !&* #& #### | | ?????#######?## # &! | | ??????????????# # ## | | ??????????????## #### ######## | | ???????????????######?# ##?????# | | ??????????????????????## #?????## | | ??????????????????##??? #??????# | | ?????????????????? #??# #?????## | | ?????????????????? ##?## ##???## | | ?????????????????? ##? #??## | | ?????#########???? ### ##?# | | ????##<<<< <###?? ?#### #?# | | ????#<<<<<<< < ##? ????## ####### | | ????# < < R ## ????## ##???## | | ????# < R@[ ## #??? ##???# | | ????#<<< <##< # #??? #???? | | ????#<" ???### ## #??? ##???? | | ????#"??????# #" #??# #####????? | | ????????????# #?? #????????? | | ????????????# #?? ###??##### | | ????????????# #"" #?? #?## ## | | ????????????#####< #?? #??# | | ????????????????# #??# #?## | | ????????????????## #### #??# | | ?????????????????# #???## | | ?????????????????## ##???# | | ??????????????????# ##?### | | ??????????????????## ### # | | ???????????????????## # | | ????????????????????# ## # | | ????????????????????# # #### ## | | ????????????????????# ####??####? | | ????????????????????## ##?????????? | | ?????????????????????#####??????????? | | ????????????????????????????????????? | | ????????????????????????????????????? | | ????????????????????????????????????? | | ????????????????????????????????????? | | ????????????????????????????????????? | +----------------------------------------------------+ Best States ------------- Heat Dissipation 39 Energy Generation 14 Energy Capacity 280 Matter Stores 300 Matter Capacity 300 Sight Range 16 Terrain Scan Range 16 Terrain Scan Density 10 Armor Coverage 800 Evasion (%) 50 Recoil Reduction 2 Item Schematics ----------------- None Robot Schematics ------------------ None Fabricated ------------ Nothing Repaired ---------- Imp. Heat Sink | 60% | -10/Materials Studied --------- None Alien Tech Used ----------------- None Achievements -------------- None Challenges ------------ None Game ------ Seed ShadingPrecisionTelecube Manual? 0 Play Time 00:23:54 Cumulative 394.7 hours Start 2026.04.08 @ 01:57:00 End 2026.04.08 @ 02:19:53 Sessions 1 Manual Loads 0 Difficulty Rogue Special Mode None Game No. 337 Rogue 301 Adventurer 36 Explorer 0 Win Type - Total 5 Types 2/0/0/1/0/0/0/2/0/0 Lore% 74 Gallery% 66 Achievement% 56 Wizard Run 0 Options --------- Layout 1 ASCII 0 Keyboard 0 Movement Numpad Keybinds 0 Fullscreen 1 Font 48/Smallcaps Map View 50x35 Zoom Use 0% Tactical HUD 1 Map Filters NONE Filters NONE Steam 1 RUN: abb270e8-c32b-48ee-b2e1-8e75687ca30a